fUST/lending_fUST_20250924
["ID","MTS","AMOUNT","RATE_DAILY","PERIOD"]
[387429492,1758727857354,-480.0,0.00020547,2]
[387429494,1758727857364,-480.0,0.00020547,2]
[387429496,1758727857373,-312.17291417,0.00020547,2]
[387429498,1758727857383,-480.0,0.00020547,2]
[387429500,1758727857392,-442.84165963,0.00020547,2]
[387429502,1758727857402,-480.0,0.00020547,2]
[387429504,1758727857412,-510.3,0.00020547,2]
[387429506,1758727857421,-480.0,0.00020547,2]
[387429508,1758727857431,-480.0,0.00020547,2]
[387429510,1758727857441,-480.0,0.00020547,2]
[387429512,1758727857451,-480.0,0.00020547,2]
[387429514,1758727857460,-321.53984247,0.00020547,2]
[387429516,1758727857470,-307.15968268,0.00020547,2]
[387429518,1758727857480,-480.0,0.00020547,2]
[387429520,1758727857489,-480.0,0.00020547,2]
[387429521,1758727857499,-480.0,0.00020547,2]
[387429523,1758727857508,-582.3,0.00020547,2]
[387429525,1758727857518,-654.83,0.00020547,2]
[387429527,1758727857527,-739.4,0.00020547,2]
[387429529,1758727857537,-480.0,0.00020547,2]
[387429531,1758727857547,-732.78,0.00020547,2]
[387429533,1758727857556,-480.0,0.00020547,2]
[387429535,1758727857566,-480.0,0.00020547,2]
[387429537,1758727857575,-151.0,0.00020547,2]
[387429539,1758727857585,-255.505924,0.00020547,2]
[387429541,1758727857595,-1333.71,0.00020547,2]
[387429543,1758727857604,-480.0,0.00020547,2]
[387429545,1758727857614,-480.0,0.00020547,2]
[387429547,1758727857623,-480.0,0.00020547,2]
[387429549,1758727857633,-480.0,0.00020547,2]
[387429551,1758727857644,-538.5,0.00020547,2]
[387429553,1758727857653,-480.0,0.00020547,2]
[387429554,1758727857664,-1405.86,0.00020547,2]
[387429556,1758727857674,-480.0,0.00020547,2]
[387429558,1758727857683,-480.0,0.00020547,2]
[387429560,1758727857693,-400.7,0.00020547,2]
[387429562,1758727857703,-480.0,0.00020547,2]
[387429564,1758727857712,-738.07,0.00020547,2]
[387429566,1758727857722,-1468.8,0.00020547,2]
[387429568,1758727857731,-480.0,0.00020547,2]
[387429570,1758727857741,-480.0,0.00020547,2]
[387429572,1758727857750,-480.0,0.00020547,2]
[387429574,1758727857759,-480.0,0.00020547,2]
[387429576,1758727857768,-883.11,0.00020547,2]
[387429578,1758727857778,-1074.53,0.00020547,2]
[387429580,1758727857787,-610.22,0.00020547,2]
[387429582,1758727857797,-266.694692,0.00020547,2]
[387429583,1758727857806,-480.0,0.00020547,2]
[387429585,1758727857816,-205.48069231,0.00020547,2]
[387429587,1758727857825,-480.0,0.00020547,2]
[387429589,1758727857835,-621.27,0.00020547,2]
[387429591,1758727857844,-504.44,0.00020547,2]
[387429593,1758727857854,-480.0,0.00020547,2]
[387429595,1758727857863,-480.0,0.00020547,2]
[387429597,1758727857874,-480.0,0.00020547,2]
[387429599,1758727857884,-151.0,0.00020547,2]
[387429601,1758727857894,-151.0,0.00020547,2]
[387429603,1758727857904,-480.0,0.00020547,2]
[387429605,1758727857914,-461.62067589,0.00020547,2]
[387429607,1758727857924,-480.0,0.00020547,2]
[387429609,1758727857933,-480.0,0.00020547,2]
[387429611,1758727857943,-480.0,0.00020547,2]
[387429613,1758727857953,-480.0,0.00020547,2]
[387429615,1758727857963,-480.0,0.00020547,2]
[387429617,1758727857973,-480.0,0.00020547,2]
[387429619,1758727857983,-480.0,0.00020547,2]
[387429621,1758727857993,-151.0,0.00020547,2]
[387429623,1758727858002,-151.0,0.00020547,2]
[387429625,1758727858012,-3239.47,0.00020547,2]
[387429627,1758727858022,-728.4,0.00020547,2]
[387429629,1758727858031,-480.0,0.00020547,2]
[387429631,1758727858046,-480.0,0.00020547,2]
[387429633,1758727858056,-775.95,0.00020547,2]
[387429635,1758727858065,-1802.05,0.00020547,2]
[387429637,1758727858076,-480.0,0.00020547,2]
[387429639,1758727858087,-480.0,0.00020547,2]
[387429641,1758727858096,-151.0,0.00020547,2]
[387429643,1758727858106,-151.0,0.00020547,2]
[387429645,1758727858116,-480.0,0.00020547,2]
[387429647,1758727858126,-480.0,0.00020547,2]
[387429648,1758727858135,-480.0,0.00020547,2]
[387429650,1758727858145,-497.0,0.00020547,2]
[387429652,1758727858154,-561.2,0.00020547,2]
[387429654,1758727858163,-480.0,0.00020547,2]
[387429656,1758727858173,-755.28,0.00020547,2]
[387429658,1758727858182,-480.0,0.00020547,2]
[387429660,1758727858191,-480.0,0.00020547,2]
[387429662,1758727858201,-480.0,0.00020547,2]
[387429670,1758727858211,-197.118366,0.00020547,2]
[387429673,1758727858291,-694.0776203,0.0002074,2]
[387429675,1758727858301,-390.3504546,0.0002074,2]
[387429677,1758727858310,-390.3504546,0.0002074,2]
[387429679,1758727858320,-260.0,0.00020777,2]
[387429681,1758727858330,-480.0,0.00020821,2]
[387429682,1758727858341,-480.0,0.00020821,2]
[387429684,1758727858351,-480.0,0.00020821,2]
[387429686,1758727858365,-480.0,0.00020821,2]
[387429688,1758727858374,-480.0,0.00020821,2]
[387429690,1758727858384,-579.55515466,0.00020821,2]
[387429692,1758727858394,-480.0,0.00020821,2]
[387429694,1758727858403,-577.86,0.00020821,2]
[387429696,1758727858413,-480.0,0.00020821,2]
[387429698,1758727858423,-480.0,0.00020821,2]
[387429700,1758727858432,-510.3,0.00020821,2]
[387429702,1758727858441,-480.0,0.00020821,2]
[387429703,1758727858451,-480.0,0.00020821,2]
[387429705,1758727858460,-524.68833887,0.00020821,2]
[387429707,1758727858470,-151.0,0.00020821,2]
[387429709,1758727858480,-480.0,0.00020821,2]
[387429711,1758727858490,-582.3,0.00020821,2]
[387429713,1758727858500,-654.83,0.00020821,2]
[387429715,1758727858510,-739.4,0.00020821,2]
[387429717,1758727858520,-480.0,0.00020821,2]
[387429719,1758727858529,-732.78,0.00020821,2]
[387429721,1758727858539,-480.0,0.00020821,2]
[387429723,1758727858548,-190.49199608,0.00020821,2]
[387429725,1758727858558,-1333.71,0.00020821,2]
[387429727,1758727858567,-480.0,0.00020821,2]
[387429729,1758727858577,-400.0,0.00020821,2]
[387429731,1758727858587,-480.0,0.00020821,2]
[387429733,1758727858596,-538.5,0.00020821,2]
[387429734,1758727858606,-1405.86,0.00020821,2]
[387429736,1758727858615,-480.0,0.00020821,2]
[387429738,1758727858625,-480.0,0.00020821,2]
[387429740,1758727858634,-480.0,0.00020821,2]
[387429742,1758727858644,-738.07,0.00020821,2]
[387429744,1758727858654,-1468.8,0.00020821,2]
[387429746,1758727858664,-480.0,0.00020821,2]
[387429748,1758727858673,-197.71,0.00020821,2]
[387429750,1758727858684,-480.0,0.00020821,2]
[387429752,1758727858693,-883.11,0.00020821,2]
[387429754,1758727858703,-1074.53,0.00020821,2]
[387429756,1758727858713,-610.22,0.00020821,2]
[387429758,1758727858722,-480.0,0.00020821,2]
[387429760,1758727858731,-480.0,0.00020821,2]
[387429761,1758727858741,-621.27,0.00020821,2]
[387429763,1758727858750,-480.0,0.00020821,2]
[387429765,1758727858761,-187.48,0.00020821,2]
[387429767,1758727858771,-480.0,0.00020821,2]
[387429769,1758727858780,-480.0,0.00020821,2]
[387429771,1758727858789,-480.0,0.00020821,2]
[387429773,1758727858800,-480.0,0.00020821,2]
[387429775,1758727858809,-480.0,0.00020821,2]
[387429777,1758727858818,-480.0,0.00020821,2]
[387429779,1758727858827,-480.0,0.00020821,2]
[387429781,1758727858836,-480.0,0.00020821,2]
[387429783,1758727858845,-3239.47,0.00020821,2]
[387429784,1758727858854,-728.4,0.00020821,2]
[387429786,1758727858864,-480.0,0.00020821,2]
[387429788,1758727858873,-480.0,0.00020821,2]
[387429790,1758727858883,-775.95,0.00020821,2]
[387429792,1758727858893,-1802.05,0.00020821,2]
[387429794,1758727858903,-480.0,0.00020821,2]
[387429796,1758727858912,-234.54292764,0.00020821,2]
[387429798,1758727858922,-480.0,0.00020821,2]
[387429800,1758727858931,-480.0,0.00020821,2]
[387429802,1758727858940,-497.0,0.00020821,2]
[387429804,1758727858950,-561.2,0.00020821,2]
[387429806,1758727858959,-580.72744141,0.00020821,2]
[387429808,1758727858969,-755.28,0.00020821,2]
[387429810,1758727858978,-480.0,0.00020821,2]
[387429811,1758727858988,-480.0,0.00020821,2]
[387429813,1758727858997,-250.0,0.0002086,2]
[387429815,1758727859007,-420.0,0.00020897,2]
[387429817,1758727859017,-198.94063915,0.00020918,2]
[387429819,1758727859026,-151.0,0.00020918,2]
[387429821,1758727859037,-285.80983285,0.00020918,2]
[387429823,1758727859048,-151.0,0.00020918,2]
[387429825,1758727859057,-151.0,0.00020918,2]
[387429827,1758727859067,-500.0,0.00020918,2]
[387429829,1758727859078,-500.0,0.00020918,2]
[387429831,1758727859088,-151.0,0.00020918,2]
[387429833,1758727859097,-500.0,0.00020918,2]
[387429835,1758727859107,-151.0,0.00020918,2]
[387429837,1758727859117,-471.0,0.00020918,2]
[387429839,1758727859127,-151.0,0.00020918,2]
[387429841,1758727859137,-151.0,0.00020918,2]
[387429843,1758727859147,-151.0,0.00020918,2]
[387429845,1758727859156,-1800.0,0.00021049,2]
[387429847,1758727859166,-390.3504546,0.00021068,2]
[387429849,1758727859176,-390.3504546,0.00021068,2]
[387429850,1758727859186,-390.3504546,0.00021068,2]
[387429852,1758727859196,-390.3504546,0.00021068,2]
[387429854,1758727859206,-390.3504546,0.00021068,2]
[387429856,1758727859216,-390.3504546,0.00021068,2]
[387429858,1758727859225,-390.3504546,0.00021068,2]
[387429860,1758727859236,-162.3942628,0.00021092,2]
[387429862,1758727859245,-480.0,0.00021095,2]
[387429864,1758727859255,-480.0,0.00021095,2]
[387429866,1758727859265,-480.0,0.00021095,2]
[387429868,1758727859274,-480.0,0.00021095,2]
[387429870,1758727859284,-577.86,0.00021095,2]
[387429872,1758727859294,-480.0,0.00021095,2]
[387429874,1758727859303,-510.3,0.00021095,2]
[387429875,1758727859313,-629.19,0.00021095,2]
[387429876,1758727859322,-480.0,0.00021095,2]
[387429877,1758727859332,-480.0,0.00021095,2]
[387429878,1758727859341,-582.3,0.00021095,2]
[387429879,1758727859350,-654.83,0.00021095,2]
[387429880,1758727859360,-739.4,0.00021095,2]
[387429881,1758727859369,-480.0,0.00021095,2]
[387429882,1758727859379,-732.78,0.00021095,2]
[387429883,1758727859388,-1333.71,0.00021095,2]
[387429884,1758727859397,-480.0,0.00021095,2]
[387429885,1758727859407,-480.0,0.00021095,2]
[387429886,1758727859416,-538.5,0.00021095,2]
[387429887,1758727859425,-1405.86,0.00021095,2]
[387429888,1758727859435,-480.0,0.00021095,2]
[387429889,1758727859444,-484.32738446,0.00021095,2]
[387429890,1758727859454,-379.9,0.00021095,2]
[387429891,1758727859464,-738.07,0.00021095,2]
[387429892,1758727859473,-1468.8,0.00021095,2]
[387429893,1758727859482,-258.22197677,0.00021095,2]
[387429894,1758727859492,-883.11,0.00021095,2]
[387429895,1758727859501,-1074.53,0.00021095,2]
[387429896,1758727859510,-610.22,0.00021095,2]
[387429897,1758727859520,-480.0,0.00021095,2]
[387429898,1758727859529,-480.0,0.00021095,2]
[387429899,1758727859538,-621.27,0.00021095,2]
[387429900,1758727859547,-480.0,0.00021095,2]
[387429901,1758727859557,-480.0,0.00021095,2]
[387429902,1758727859566,-480.0,0.00021095,2]
[387429903,1758727859575,-480.0,0.00021095,2]
[387429906,1758727859652,-480.0,0.00021095,2]
[387429908,1758727859662,-480.0,0.00021095,2]
[387429910,1758727859671,-3239.47,0.00021095,2]
[387429912,1758727859681,-728.4,0.00021095,2]
[387429914,1758727859692,-775.95,0.00021095,2]
[387429916,1758727859703,-1802.05,0.00021095,2]
[387429918,1758727859713,-480.0,0.00021095,2]
[387429920,1758727859722,-480.0,0.00021095,2]
[387429922,1758727859731,-480.0,0.00021095,2]
[387429924,1758727859741,-497.0,0.00021095,2]
[387429926,1758727859754,-561.2,0.00021095,2]
[387429928,1758727859764,-755.28,0.00021095,2]
[387429929,1758727859773,-480.0,0.00021095,2]
[387429931,1758727859782,-598.0,0.00021095,2]
[387429933,1758727859792,-2100.70296981,0.00021099,2]
[387429935,1758727859802,-200.59302797,0.00021192,2]
[387429937,1758727859811,-246.0713055,0.00021192,2]
[387429939,1758727859820,-151.0,0.00021192,2]
[387429941,1758727859830,-500.0,0.00021192,2]
[387429943,1758727859839,-532.59084245,0.00021192,2]
[387429945,1758727859849,-151.0,0.00021192,2]
[387429947,1758727859859,-500.0,0.00021192,2]
[387429949,1758727859869,-151.0,0.00021192,2]
[387429951,1758727859878,-471.0,0.00021192,2]
[387429953,1758727859888,-151.0,0.00021192,2]
[387429955,1758727859898,-151.0,0.00021192,2]
[387429957,1758727859908,-151.0,0.00021192,2]
[387429959,1758727859918,-164.0,0.00021233,4]
[387429961,1758727859928,-503.45545785,0.00021243,2]
[387429963,1758727859937,-500.0,0.00021243,2]
[387429965,1758727859948,-500.0,0.00021243,2]
[387429967,1758727859957,-500.0,0.00021243,2]
[387429969,1758727859967,-500.0,0.00021243,2]
[387429971,1758727859977,-500.0,0.00021243,2]
[387429973,1758727859986,-500.0,0.00021243,2]
[387429975,1758727859996,-193.31081902,0.00021243,2]
[387429977,1758727860005,-500.0,0.00021243,2]
[387429979,1758727860015,-500.0,0.00021243,2]
[387429981,1758727860024,-360.0,0.00021324,2]
[387429983,1758727860035,-480.0,0.00021369,2]
[387429985,1758727860048,-480.0,0.00021369,2]
[387429987,1758727860058,-480.0,0.00021369,2]
[387429989,1758727860068,-577.86,0.00021369,2]
[387429991,1758727860079,-480.0,0.00021369,2]
[387429993,1758727860090,-510.3,0.00021369,2]
[387429995,1758727860101,-480.0,0.00021369,2]
[387429997,1758727860111,-480.0,0.00021369,2]
[387429999,1758727860123,-582.3,0.00021369,2]
[387430001,1758727860134,-739.4,0.00021369,2]
[387430003,1758727860145,-654.83,0.00021369,2]
[387430005,1758727860156,-480.0,0.00021369,2]
[387430008,1758727860167,-732.78,0.00021369,2]
[387430010,1758727860177,-1333.71,0.00021369,2]
[387430011,1758727860187,-480.0,0.00021369,2]
[387430014,1758727860197,-480.0,0.00021369,2]
[387430016,1758727860208,-538.5,0.00021369,2]
[387430018,1758727860218,-1405.86,0.00021369,2]
[387430020,1758727860228,-480.0,0.00021369,2]
[387430022,1758727860238,-738.07,0.00021369,2]
[387430024,1758727860248,-1468.8,0.00021369,2]
[387430026,1758727860258,-883.11,0.00021369,2]
[387430028,1758727860268,-1074.53,0.00021369,2]
[387430030,1758727860287,-610.22,0.00021369,2]
[387430032,1758727860306,-621.27,0.00021369,2]
[387430034,1758727860316,-480.0,0.00021369,2]
[387430036,1758727860326,-480.0,0.00021369,2]
[387430038,1758727860336,-480.0,0.00021369,2]
[387430040,1758727860346,-480.0,0.00021369,2]
[387430042,1758727860356,-480.0,0.00021369,2]
[387430044,1758727860366,-3239.47,0.00021369,2]
[387430046,1758727860375,-728.4,0.00021369,2]
[387430048,1758727860385,-775.95,0.00021369,2]
[387430050,1758727860395,-1015.74576329,0.00021369,2]
[387430061,1758727860505,-786.30423671,0.00021369,2]
[387430063,1758727860516,-480.0,0.00021369,2]
[387430065,1758727860526,-480.0,0.00021369,2]
[387430067,1758727860536,-480.0,0.00021369,2]
[387430069,1758727860546,-497.0,0.00021369,2]
[387430071,1758727860556,-561.2,0.00021369,2]
[387430073,1758727860567,-755.28,0.00021369,2]
[387430075,1758727860577,-480.0,0.00021369,2]
[387430077,1758727860587,-1084.32,0.00021422,2]
[387430079,1758727860597,-295.32669179,0.00021466,2]
[387430081,1758727860607,-500.0,0.00021466,2]
[387430083,1758727860617,-500.0,0.00021466,2]
[387430085,1758727860627,-471.0,0.00021466,2]
[387430087,1758727860637,-151.0,0.00021466,2]
[387430089,1758727860646,-199.3671001,0.00021466,2]
[387430091,1758727860656,-217.50576632,0.00021466,2]
[387430094,1758727860676,-160.0,0.00021519,2]
[387430097,1758727860687,-160.0,0.00021519,2]
[387430099,1758727860696,-532.2324375,0.00021519,2]
[387430101,1758727860706,-160.0,0.00021519,2]
[387430103,1758727860715,-417.15472785,0.00021519,2]
[387430105,1758727860725,-160.0,0.00021519,2]
[387430107,1758727860735,-160.0,0.00021519,2]
[387430109,1758727860744,-160.0,0.00021519,2]
[387430111,1758727860754,-233.62170814,0.00021519,2]
[387430113,1758727860763,-461.1427495,0.00021616,2]
[387430115,1758727860773,-491.9049506,0.00021616,2]
[387430117,1758727860782,-296.7110155,0.00021616,2]
[387430130,1758727860898,-296.7110155,0.00021616,2]
[387430132,1758727860908,-428.61418624,0.00021643,2]
[387430134,1758727860920,-51.38581376,0.00021643,2]
[387430136,1758727860930,-480.0,0.00021643,2]
[387430138,1758727860939,-480.0,0.00021643,2]
[387430140,1758727860949,-577.86,0.00021643,2]
[387430142,1758727860958,-314.23972351,0.00021643,2]
[387430144,1758727860967,-510.3,0.00021643,2]
[387430146,1758727860977,-43.76631175,0.00021643,2]
[387430148,1758727860988,-436.23368825,0.00021643,2]
[387430150,1758727860998,-480.0,0.00021643,2]
[387430152,1758727861008,-582.3,0.00021643,2]
[387430154,1758727861018,-739.4,0.00021643,2]
[387430156,1758727861028,-654.83,0.00021643,2]
[387430158,1758727861041,-480.0,0.00021643,2]
[387430160,1758727861050,-732.78,0.00021643,2]
[387430162,1758727861059,-1333.71,0.00021643,2]
[387430164,1758727861068,-480.0,0.00021643,2]
[387430166,1758727861078,-480.0,0.00021643,2]
[387430168,1758727861089,-538.5,0.00021643,2]
[387430170,1758727861098,-1405.86,0.00021643,2]
[387430172,1758727861107,-480.0,0.00021643,2]
[387430174,1758727861118,-738.07,0.00021643,2]
[387430176,1758727861127,-1468.8,0.00021643,2]
[387430178,1758727861137,-883.11,0.00021643,2]
[387430180,1758727861148,-1074.53,0.00021643,2]
[387430182,1758727861158,-610.22,0.00021643,2]
[387430184,1758727861169,-621.27,0.00021643,2]
[387430186,1758727861179,-480.0,0.00021643,2]
[387430188,1758727861188,-480.0,0.00021643,2]
[387430190,1758727861198,-284.61897534,0.00021643,2]
[387430192,1758727861208,-480.0,0.00021643,2]
[387430195,1758727861218,-480.0,0.00021643,2]
[387430197,1758727861228,-728.4,0.00021643,2]
[387430199,1758727861238,-3239.47,0.00021643,2]
[387430201,1758727861247,-775.95,0.00021643,2]
[387430202,1758727861257,-1802.05,0.00021643,2]
[387430204,1758727861266,-480.0,0.00021643,2]
[387430206,1758727861276,-480.0,0.00021643,2]
[387430208,1758727861286,-480.0,0.00021643,2]
[387430210,1758727861295,-497.0,0.00021643,2]
[387430212,1758727861304,-561.2,0.00021643,2]
[387430214,1758727861314,-755.28,0.00021643,2]
[387430216,1758727861324,-480.0,0.00021643,2]
[387430218,1758727861334,-390.3504546,0.00021699,2]
[387430220,1758727861343,-390.3504546,0.00021699,2]
[387430222,1758727861352,-390.3504546,0.00021699,2]
[387430224,1758727861362,-162.2253934,0.00021699,2]
[387430226,1758727861373,-296.7110155,0.00021699,2]
[387430228,1758727861383,-586.1331603,0.00021699,2]
[387430230,1758727861394,-162.2253934,0.00021699,2]
[387430232,1758727861403,-586.1331603,0.00021699,2]
[387430234,1758727861413,-162.2253934,0.00021699,2]
[387430236,1758727861422,-586.1331603,0.00021699,2]
[387430238,1758727861432,-162.2253934,0.00021699,2]
[387430240,1758727861441,-296.7110155,0.00021699,2]
[387430242,1758727861451,-162.2253934,0.00021699,2]
[387430244,1758727861460,-586.1331603,0.00021699,2]
[387430246,1758727861470,-296.7110155,0.00021699,2]
[387430248,1758727861481,-162.2253934,0.00021699,2]
[387430250,1758727861491,-296.7110155,0.00021699,2]
[387430252,1758727861501,-586.1331603,0.00021699,2]
[387430254,1758727861511,-296.7110155,0.00021699,2]
[387430256,1758727861521,-162.2253934,0.00021699,2]
[387430258,1758727861531,-586.1331603,0.00021699,2]
[387430261,1758727861541,-296.7110155,0.00021699,2]
[387430263,1758727861550,-162.2253934,0.00021699,2]
[387430264,1758727861559,-586.1331603,0.00021699,2]
[387430266,1758727861569,-296.7110155,0.00021699,2]
[387430268,1758727861579,-162.2253934,0.00021699,2]
[387430270,1758727861588,-296.7110155,0.00021699,2]
[387430272,1758727861598,-586.1331603,0.00021699,2]
[387430274,1758727861608,-500.0,0.0002174,2]
[387430276,1758727861618,-632.87995947,0.0002174,2]
[387430279,1758727861629,-471.0,0.0002174,2]
[387430280,1758727861640,-151.0,0.0002174,2]
[387430283,1758727861650,-151.0,0.00021762,2]
[387430284,1758727861659,-3164.0204432,0.00021773,2]
[387430286,1758727861669,-307.1761053,0.00021781,2]
[387430289,1758727861679,-500.0,0.00021791,2]
[387430290,1758727861689,-1000.0,0.00021791,2]
[387430293,1758727861699,-264.27996856,0.00021791,2]
[387430294,1758727861709,-1000.0,0.00021791,2]
[387430297,1758727861723,-173.66778166,0.00021791,2]
[387430299,1758727861733,-855.7281607,0.00021828,2]
[387430301,1758727861743,-748.2737598,0.00021828,2]
[387430303,1758727861752,-2472.0157204,0.00021828,2]
[387430305,1758727861762,-460.0,0.00021872,2]
[387430307,1758727861772,-156.0,0.00021916,2]
[387430309,1758727861782,-155.53405102,0.00021916,2]
[387430311,1758727861792,-156.0,0.00021916,2]
[387430313,1758727861801,-156.0,0.00021916,2]
[387430315,1758727861810,-156.0,0.00021916,2]
[387430317,1758727861821,-480.0,0.00021917,2]
[387430319,1758727861831,-480.0,0.00021917,2]
[387430321,1758727861840,-480.0,0.00021917,2]
[387430323,1758727861850,-577.86,0.00021917,2]
[387430325,1758727861859,-510.3,0.00021917,2]
[387430327,1758727861869,-480.0,0.00021917,2]
[387430329,1758727861879,-480.0,0.00021917,2]
[387430331,1758727861889,-582.3,0.00021917,2]
[387430333,1758727861899,-739.4,0.00021917,2]
[387430335,1758727861908,-654.83,0.00021917,2]
[387430337,1758727861918,-480.0,0.00021917,2]
[387430339,1758727861928,-732.78,0.00021917,2]
[387430341,1758727861938,-1333.71,0.00021917,2]
[387430343,1758727861947,-480.0,0.00021917,2]
[387430345,1758727861957,-480.0,0.00021917,2]
[387430347,1758727861967,-538.5,0.00021917,2]
[387430349,1758727861976,-1405.86,0.00021917,2]
[387430350,1758727861986,-480.0,0.00021917,2]
[387430351,1758727861995,-738.07,0.00021917,2]
[387430352,1758727862005,-1468.8,0.00021917,2]
[387430353,1758727862015,-883.11,0.00021917,2]
[387430355,1758727862100,-1074.53,0.00021917,2]
[387430358,1758727862110,-610.22,0.00021917,2]
[387430360,1758727862121,-621.27,0.00021917,2]
[387430361,1758727862131,-480.0,0.00021917,2]
[387430363,1758727862141,-480.0,0.00021917,2]
[387430365,1758727862150,-480.0,0.00021917,2]
[387430367,1758727862160,-728.4,0.00021917,2]
[387430370,1758727862169,-3239.47,0.00021917,2]
[387430372,1758727862179,-775.95,0.00021917,2]
[387430374,1758727862189,-1802.05,0.00021917,2]
[387430376,1758727862199,-480.0,0.00021917,2]
[387430378,1758727862208,-480.0,0.00021917,2]
[387430380,1758727862218,-497.0,0.00021917,2]
[387430382,1758727862228,-561.2,0.00021917,2]
[387430384,1758727862237,-755.28,0.00021917,2]
[387430386,1758727862247,-1000.0,0.00021918,2]
[387430388,1758727862256,-1000.0,0.00021918,2]
[387430390,1758727862265,-1000.0,0.00021918,2]
[387430392,1758727862275,-1000.0,0.00021918,2]
[387430394,1758727862284,-1000.0,0.00021918,2]
[387430396,1758727862294,-1000.0,0.00021918,2]
[387430398,1758727862303,-1000.0,0.00021918,2]
[387430400,1758727862313,-1000.0,0.00021918,2]
[387430402,1758727862322,-1000.0,0.00021918,2]
[387430404,1758727862332,-1000.0,0.00021918,2]
[387430406,1758727862342,-1000.0,0.00021918,2]
[387430408,1758727862352,-1000.0,0.00021918,2]
[387430410,1758727862362,-1000.0,0.00021918,2]
[387430412,1758727862371,-1000.0,0.00021918,2]
[387430414,1758727862382,-1000.0,0.00021918,2]
[387430416,1758727862391,-1000.0,0.00021918,2]
[387430418,1758727862400,-1000.0,0.00021918,2]
[387430420,1758727862410,-1205.97249037,0.00021997,2]
[387430422,1758727862419,-302.0,0.00022014,2]
[387430424,1758727862430,-471.0,0.00022014,2]
[387430426,1758727862439,-161.73256297,0.00022014,2]
[387430428,1758727862449,-1800.0,0.00022145,2]
[387430430,1758727862458,-4584.0,0.0002218,2]
[387430432,1758727862468,-480.0,0.00022191,2]
[387430434,1758727862477,-480.0,0.00022191,2]
[387430436,1758727862487,-577.86,0.00022191,2]
[387430438,1758727862496,-510.3,0.00022191,2]
[387430440,1758727862506,-480.0,0.00022191,2]
[387430442,1758727862516,-480.0,0.00022191,2]
[387430444,1758727862527,-582.3,0.00022191,2]
[387430446,1758727862537,-654.83,0.00022191,2]
[387430448,1758727862546,-480.0,0.00022191,2]
[387430450,1758727862556,-739.4,0.00022191,2]
[387430452,1758727862566,-732.78,0.00022191,2]
[387430454,1758727862576,-1333.71,0.00022191,2]
[387430456,1758727862586,-480.0,0.00022191,2]
[387430458,1758727862595,-480.0,0.00022191,2]
[387430461,1758727862610,-538.5,0.00022191,2]
[387430464,1758727862634,-1405.86,0.00022191,2]
[387430467,1758727862654,-480.0,0.00022191,2]
[387430470,1758727862674,-738.07,0.00022191,2]
[387430473,1758727862696,-1468.8,0.00022191,2]
[387430476,1758727862717,-883.11,0.00022191,2]
[387430479,1758727862734,-1074.53,0.00022191,2]
[387430482,1758727862754,-610.22,0.00022191,2]
[387430485,1758727862769,-621.27,0.00022191,2]
[387430488,1758727862786,-480.0,0.00022191,2]